bitfinex/quotes_SOLUSD_20260224
["timestamp","ask_amount","ask_price","bid_price","bid_amount"]
[1771946442775,4.17544946,77.388,77.35,13.75044576]
[1771946443095,4.17544946,77.379,77.344,4.10879405]
[1771946444192,17.09897317,77.379,77.35,13.75044576]
[1771946444390,12.92180937,77.389,77.361,4.10879405]
[1771946445690,4.17544946,77.388,77.35,13.75044576]
[1771946445894,4.17544946,77.388,77.36,13.75044576]
[1771946446098,55.36227208,77.417,77.345,45.2517939]
[1771946446099,13.75044576,77.43,77.381,4.10879405]
[1771946446290,4.17544946,77.438,77.401,4.10879405]
[1771946446475,4.17544946,77.419,77.382,12.92290196]
[1771946446791,4.17544946,77.419,77.39,13.75044576]
[1771946447097,4.17544946,77.429,77.4,13.75044576]
[1771946447392,4.17544946,77.409,77.37,13.75044576]
[1771946447696,4.17544946,77.389,77.358,12.92691124]
[1771946448272,13.75044576,77.4,77.361,4.10879405]
[1771946448479,4.17544946,77.423,77.39,13.75044576]
[1771946448678,13.75044576,77.42,77.39,13.75044576]
[1771946448893,4.17544946,77.419,77.39,13.75044576]
[1771946449892,12.91629564,77.422,77.391,4.10879405]
[1771946450094,12.91629564,77.422,77.358,32.3172781]
[1771946450095,12.91520118,77.429,77.4,13.75044576]
[1771946450305,12.91352414,77.439,77.402,17.02835685]
[1771946450684,17.0889736,77.439,77.402,17.02835685]
[1771946450879,4.17544946,77.419,77.38,13.75044576]
[1771946451985,4.17544946,77.419,77.39,13.75044576]
[1771946452385,17.09224393,77.419,77.391,12.72139912]
[1771946452781,4.17544946,77.418,77.383,4.10879405]
[1771946452998,4.17544946,77.418,77.39,13.75044576]
[1771946453200,64.5614766,77.446,77.382,12.92290196]
[1771946453201,12.9152936,77.428,77.4,13.75044576]
[1771946454094,12.9152936,77.428,77.4,13.55044576]
[1771946454277,12.9152936,77.428,77.4,13.75044576]
[1771946455699,4.27648446,77.427,77.39,13.75044576]
[1771946455898,4.27648446,77.419,77.383,12.92272216]
[1771946456898,4.27648446,77.409,77.373,12.92440515]
[1771946457296,4.27648446,77.409,77.38,13.75044576]
[1771946457688,12.91856138,77.408,77.381,12.92306897]
[1771946458079,12.91856138,77.408,77.38,13.75044576]
[1771946458280,12.91856138,77.408,77.326,51.7288941]
[1771946458281,4.27648446,77.399,77.36,13.75044576]
[1771946458487,4.27648446,77.399,77.319,103.5]
[1771946458488,13.75044576,77.39,77.354,12.92757969]
[1771946458783,4.27648446,77.389,77.36,13.75044576]
[1771946459104,4.27648446,77.389,77.35,13.75044576]
[1771946459287,4.27648446,77.379,77.332,4.30587058]
[1771946459480,4.27648446,77.38,77.35,13.75044576]
[1771946459696,4.27648446,77.391,77.36,13.75044576]
[1771946460009,12.92156609,77.39,77.36,26.67692765]
[1771946460182,12.72156609,77.39,77.361,4.30587058]
[1771946460382,4.27648446,77.398,77.361,4.30587058]
[1771946460713,4.27648446,77.398,77.36,26.67692765]
[1771946460908,4.27648446,77.398,77.37,13.75044576]
[1771946461206,12.9183945,77.409,77.38,13.75044576]
[1771946461509,51.64607301,77.451,77.36,45.24292449]
[1771946461510,6.7496958,77.43,77.4,13.75044576]
[1771946461703,6.7496958,77.43,77.401,4.30587058]
[1771946462009,12.91338989,77.439,77.41,13.75044576]
[1771946462207,3.69383402,77.468,77.41,13.75044576]
[1771946462208,12.91172255,77.449,77.41,13.75044576]
[1771946462905,13.75044576,77.47,77.43,13.75044576]
[1771946463093,4.27648446,77.469,77.44,13.75044576]
[1771946463885,12.90855579,77.468,77.44,13.75044576]
[1771946464091,12.90855579,77.468,77.402,116.2760652]
[1771946464092,4.27648446,77.467,77.43,13.75044576]
[1771946464303,4.27648446,77.459,77.424,12.91578931]
[1771946464506,4.27648446,77.459,77.421,12.91639219]
[1771946464810,4.27648446,77.459,77.43,13.75044576]
[1771946465009,12.90855579,77.468,77.44,13.75044576]
[1771946465505,4.27648446,77.459,77.421,12.91639219]
[1771946465707,4.27648446,77.449,77.41,13.75044576]
[1771946465886,45.17994526,77.468,77.401,12.91972971]
[1771946465887,4.27648446,77.437,77.401,12.91972971]
[1771946466088,4.27648446,77.429,77.392,12.92107647]
[1771946466394,4.27648446,77.429,77.385,4.30587058]
[1771946466395,4.27648446,77.419,77.386,12.92213604]
[1771946466595,4.27648446,77.419,77.381,12.92306897]
[1771946466793,4.27648446,77.419,77.38,13.75044576]
[1771946466992,4.27648446,77.409,77.38,13.75044576]
[1771946467193,4.27648446,77.409,77.376,12.92390405]
[1771946467398,4.27648446,77.409,77.38,13.75044576]
[1771946467909,4.27648446,77.399,77.36,13.75044576]
[1771946468403,51.6645154,77.423,77.356,12.92724546]
[1771946468404,4.27648446,77.423,77.39,13.75044576]
[1771946468607,17.19154212,77.429,77.4,13.75044576]
[1771946468805,0.2,77.449,77.42,13.75044576]
[1771946469104,4.27648446,77.429,77.39,13.75044576]
[1771946469307,13.11351216,77.439,77.41,13.75044576]
[1771946469608,0.2,77.429,77.41,13.75044576]
[1771946470206,12.91522446,77.428,77.39,13.75044576]
[1771946470397,4.27648446,77.427,77.39,13.75044576]
[1771946470601,4.27648446,77.427,77.393,12.92098121]
[1771946471293,0.2,77.429,77.41,13.75044576]
[1771946471498,18.02693022,77.45,77.393,12.92098121]
[1771946471499,12.91200907,77.448,77.42,13.75044576]
[1771946472006,13.75044576,77.47,77.431,12.91472407]
[1771946472305,12.90838916,77.469,77.44,13.75044576]
[1771946472506,12.90589024,77.484,77.45,13.75044576]
[1771946472699,12.90589024,77.484,77.441,4.30587058]
[1771946472700,4.27648446,77.479,77.441,4.30587058]
[1771946472908,4.27648446,77.479,77.45,13.75044576]
[1771946474298,45.17411393,77.478,77.45,13.75044576]
[1771946474606,4.27648446,77.477,77.44,13.75044576]
[1771946474812,4.27648446,77.469,77.431,17.22056603]
[1771946475106,13.75044576,77.46,77.42,18.05631634]
[1771946475303,4.27648446,77.459,77.42,13.75044576]
[1771946475607,13.75044576,77.47,77.431,4.30587058]
[1771946475808,4.27648446,77.477,77.44,13.75044576]
[1771946476012,13.75044576,77.47,77.44,13.75044576]
[1771946476395,4.27648446,77.469,77.433,12.91437253]
[1771946476592,4.27648446,77.459,77.377,51.69488969]
[1771946476791,96.8041716,77.476,77.377,51.69488969]
[1771946476792,4.27648446,77.449,77.41,13.75044576]
[1771946477999,4.27648446,77.449,77.41,13.95044576]
[1771946478405,4.27648446,77.429,77.41,0.2]
[1771946478602,4.27648446,77.439,77.41,0.2]
[1771946478808,45.19161242,77.448,77.411,4.30587058]
[1771946479210,45.19161242,77.448,77.42,13.75044576]
[1771946479396,12.91188926,77.448,77.42,13.75044576]
[1771946479596,45.16944996,77.486,77.41,161.67771736]
[1771946479818,4.27648446,77.485,77.46,13.75044576]
[1771946480112,12.90555713,77.486,77.46,13.75044576]
[1771946480317,4.27648446,77.496,77.46,13.75044576]
[1771946480498,13.85044576,77.5,77.41,103.54582094]
[1771946480499,4.27648446,77.479,77.45,13.75044576]
[1771946480906,4.27648446,77.479,77.44,4.30587058]
[1771946480907,4.27648446,77.479,77.44,13.75044576]
[1771946481102,4.27648446,77.469,77.44,13.75044576]
[1771946481894,4.27648446,77.469,77.441,12.91305639]
[1771946482096,4.27648446,77.469,77.44,13.75044576]
[1771946482712,4.27648446,77.48,77.45,13.75044576]
[1771946482924,12.90672311,77.479,77.45,13.75044576]
[1771946483101,4.09980609,77.469,77.44,13.75044576]
[1771946484306,4.09980609,77.469,77.43,13.75044576]
[1771946484503,4.09980609,77.459,77.43,13.75044576]
[1771946484710,12.91022231,77.458,77.43,13.75044576]
[1771946484919,12.90951021,77.463,77.432,4.19993684]
[1771946485098,32.26463563,77.485,77.451,4.17647358]
[1771946485415,12.90505749,77.489,77.46,13.75044576]
[1771946485617,13.75044576,77.48,77.44,13.75044576]
[1771946485814,4.32039902,77.479,77.44,13.75044576]
[1771946486019,4.32039902,77.479,77.45,13.75044576]
[1771946486320,4.32039902,77.479,77.44,13.75044576]
[1771946486526,4.32039902,77.479,77.41,0.2]
[1771946486527,4.32039902,77.459,77.42,13.75044576]
[1771946486821,4.32039902,77.449,77.41,13.95044576]
[1771946487206,4.32039902,77.439,77.41,0.2]
[1771946487528,4.32039902,77.429,77.39,13.75044576]
[1771946487731,4.32039902,77.429,77.392,12.92113123]
[1771946488099,4.32039902,77.419,77.38,13.75044576]
[1771946488300,4.32039902,77.419,77.361,4.17647358]
[1771946488535,3.69383402,77.447,77.361,4.17647358]
[1771946488536,4.32039902,77.409,77.37,13.75044576]
[1771946488698,3.69383402,77.437,77.35,13.75044576]
[1771946488699,4.32039902,77.389,77.35,13.75044576]
[1771946488903,4.32039902,77.379,77.341,4.17647358]
[1771946489301,4.32039902,77.379,77.34,13.75044576]
[1771946489497,4.32039902,77.379,77.341,4.17647358]
[1771946489713,4.32039902,77.369,77.33,17.92691934]
[1771946490017,4.32039902,77.369,77.331,4.17647358]
[1771946490224,13.75044576,77.36,77.321,4.17647358]
[1771946490405,4.32039902,77.359,77.32,13.75044576]
[1771946490720,13.75044576,77.34,77.31,0.2]
[1771946491021,4.32039902,77.339,77.31,0.2]
[1771946491226,12.92858251,77.348,77.31,13.95044576]
[1771946491518,4.32039902,77.349,77.311,4.17647358]
[1771946491723,13.75044576,77.34,77.311,4.17647358]
[1771946491899,4.32039902,77.339,77.31,0.2]
[1771946492103,4.32039902,77.339,77.311,12.93476995]
[1771946492714,13.75044576,77.35,77.312,4.17647358]
[1771946492925,13.75044576,77.35,77.314,4.17647358]
[1771946493122,13.75044576,77.36,77.321,4.17647358]
[1771946494006,4.32039902,77.364,77.331,4.17647358]
[1771946494203,4.32039902,77.378,77.341,4.17647358]
[1771946494503,13.75044576,77.37,77.34,13.75044576]
[1771946494704,4.32039902,77.359,77.32,13.75044576]
[1771946495006,13.75044576,77.35,77.321,12.93309708]
[1771946495206,12.92739495,77.356,77.321,12.93309708]
[1771946495623,4.32039902,77.359,77.321,45.2658398]
[1771946495825,4.32039902,77.359,77.33,13.75044576]
[1771946496130,4.32039902,77.37,77.34,13.75044576]
[1771946496328,26.67368389,77.38,77.341,4.17647358]
[1771946496514,13.75044576,77.37,77.341,4.17647358]
[1771946496718,4.32039902,77.349,77.321,12.93309708]
[1771946496909,4.32039902,77.349,77.313,4.17647358]
[1771946497108,17.24882237,77.349,77.313,4.17647358]
[1771946497835,13.77690456,77.37,77.33,17.95337814]
[1771946498130,4.32039902,77.359,77.32,13.77690456]
[1771946498431,4.32039902,77.349,77.312,4.17647358]
[1771946498811,4.32039902,77.359,77.321,4.17647358]
[1771946499226,18.09730358,77.35,77.316,12.93390986]
[1771946499517,4.32039902,77.349,77.312,12.93458347]
[1771946499716,4.32039902,77.349,77.312,17.11105705]
[1771946499921,4.32039902,77.349,77.313,4.17647358]
[1771946500224,4.32039902,77.349,77.32,13.77690456]
[1771946500409,4.32039902,77.357,77.32,13.77690456]
[1771946500807,4.32039902,77.349,77.31,0.2]
[1771946501036,4.32039902,77.319,77.282,4.17647358]
[1771946501206,12.9335989,77.318,77.286,12.93889909]
[1771946501412,4.32039902,77.329,77.291,4.17647358]
[1771946501705,12.93226533,77.326,77.294,12.93760466]
[1771946502026,4.32039902,77.325,77.29,46.12249681]
[1771946502213,4.32039902,77.325,77.301,12.93644325]
[1771946502534,4.32039902,77.331,77.301,12.93644325]
[1771946502834,13.77690456,77.33,77.301,12.93644325]
[1771946503128,4.32039902,77.329,77.3,0.2]
[1771946503711,4.32039902,77.327,77.3,0.2]
[1771946504110,4.32039902,77.319,77.28,13.77690456]
[1771946504309,4.32039902,77.309,77.27,13.77690456]
[1771946504709,96.98944752,77.328,77.26,0.2]
[1771946504710,4.32039902,77.289,77.26,0.2]
[1771946504908,4.32039902,77.289,77.261,12.94314078]
[1771946505111,4.32039902,77.289,77.26,0.2]
[1771946505325,4.32039902,77.289,77.261,12.94314078]
[1771946505533,4.32039902,77.289,77.26,0.2]
[1771946505742,4.32039902,77.279,77.26,0.2]
[1771946505911,4.32039902,77.259,77.25,1e-08]
[1771946506110,4.32039902,77.259,77.221,12.94971739]
[1771946506314,4.32039902,77.249,77.22,13.77690456]
[1771946506516,13.77690456,77.24,77.2,18.15337814]
[1771946506732,4.32039902,77.244,77.21,13.77690456]
[1771946507235,13.77690456,77.24,77.2,63.49001807]
[1771946507417,4.32039902,77.229,77.2,0.2]
[1771946507625,4.32039902,77.227,77.2,0.2]
[1771946507929,4.32039902,77.209,77.17,13.77690456]
[1771946508311,4.32039902,77.209,77.18,13.77690456]
[1771946508739,4.32039902,77.209,77.168,45.3555878]
[1771946508918,4.32039902,77.199,77.17,13.77690456]
[1771946509116,13.77690456,77.21,77.171,4.17647358]
[1771946509330,4.32039902,77.209,77.171,4.17647358]
[1771946509847,4.32039902,77.207,77.173,4.17647358]
[1771946510016,13.77690456,77.21,77.173,4.17647358]
[1771946510217,4.32039902,77.209,77.172,12.95806769]
[1771946510426,4.32039902,77.22,77.19,13.77690456]
[1771946510735,13.77690456,77.21,77.18,13.77690456]
[1771946510935,12.9485038,77.229,77.2,13.77690456]
[1771946511146,4.32039902,77.229,77.191,4.17647358]
[1771946511633,4.32039902,77.227,77.191,4.17647358]
[1771946511842,4.32039902,77.227,77.172,32.39516923]
[1771946511843,4.32039902,77.219,77.182,12.95628651]
[1771946512437,45.32035012,77.228,77.19,13.77690456]
[1771946512619,4.32039902,77.227,77.19,13.77690456]
[1771946513018,45.32035012,77.228,77.16,0.2]
[1771946513019,4.32039902,77.199,77.16,0.2]
[1771946513232,13.77690456,77.19,77.161,4.17647358]
[1771946513827,252.49909356,77.228,77.171,4.17647358]
[1771946513828,4.32039902,77.209,77.171,4.17647358]
[1771946514134,4.32039902,77.207,77.171,4.17647358]
[1771946514517,13.77690456,77.19,77.16,0.2]
[1771946514712,13.77690456,77.2,77.161,12.95991498]
[1771946514919,4.32039902,77.207,77.18,13.77690456]
[1771946515121,12.95202569,77.208,77.18,13.77690456]
[1771946515335,12.95202569,77.208,77.17,13.77690456]
[1771946515537,4.18099031,77.207,77.161,45.35970243]
[1771946515729,4.18099031,77.207,77.18,13.77690456]
[1771946516112,4.18099031,77.229,77.19,13.77690456]
[1771946517119,4.18099031,77.229,77.19,17.91171011]
[1771946517523,17.12949411,77.229,77.2,13.77690456]
[1771946517724,12.94883913,77.227,77.2,13.77690456]
[1771946518230,4.18099031,77.226,77.191,12.95487815]
[1771946518435,12.9481431,77.232,77.2,13.77690456]
[1771946518630,4.18099031,77.231,77.191,45.34207354]
[1771946518837,4.18099031,77.229,77.191,45.34207354]
[1771946519062,13.77690456,77.24,77.201,4.13480555]
[1771946519343,12.946143,77.244,77.211,4.13480555]
[1771946519527,4.18099031,77.243,77.21,13.77690456]
[1771946519722,12.94632453,77.242,77.211,12.95152245]
[1771946519920,13.77690456,77.24,77.21,13.77690456]
[1771946520135,4.18099031,77.239,77.201,12.95320008]
[1771946520352,13.77690456,77.23,77.181,32.39108884]
[1771946520645,4.18099031,77.229,77.19,13.77690456]
[1771946521435,4.18099031,77.24,77.201,4.13480555]
[1771946521642,4.18099031,77.24,77.21,13.77690456]
[1771946521944,12.94632453,77.242,77.211,12.95152245]
[1771946522135,4.18099031,77.267,77.212,4.13480555]
[1771946522450,6.76793879,77.272,77.25,13.77690456]
[1771946522742,6.76793879,77.272,77.231,4.13480555]
[1771946522743,4.18099031,77.277,77.24,13.77690456]
[1771946522922,4.18099031,77.277,77.25,13.77690456]
[1771946523126,4.18099031,77.277,77.24,13.77690456]
[1771946523535,4.18099031,77.259,77.22,13.77690456]
[1771946523927,4.18099031,77.257,77.221,12.94984524]
[1771946524335,4.18099031,77.257,77.193,55.51142109]
[1771946524336,4.18099031,77.249,77.21,13.77690456]
[1771946524522,4.18099031,77.249,77.22,13.77690456]
[1771946524718,13.77690456,77.26,77.221,4.13480555]
[1771946524945,4.18099031,77.268,77.23,13.77690456]
[1771946525248,4.18099031,77.279,77.25,13.77690456]
[1771946525544,4.18099031,77.278,77.24,18.11171011]
[1771946525744,4.18099031,77.278,77.241,4.13480555]
[1771946525939,12.93845178,77.289,77.26,13.77690456]
[1771946527243,4.18099031,77.292,77.26,13.97690456]
[1771946527746,4.18099031,77.326,77.281,4.13480555]
[1771946528045,4.18099031,77.324,77.291,4.13480555]
[1771946528224,4.18099031,77.336,77.3,13.77690456]
[1771946528542,96.94556829,77.363,77.29,13.77690456]
[1771946528543,4.18099031,77.319,77.29,13.77690456]
[1771946528728,4.18099031,77.319,77.282,12.93962371]
[1771946528931,4.18099031,77.329,77.29,13.77690456]
[1771946529127,4.18099031,77.329,77.3,13.77690456]
[1771946529444,13.77690456,77.35,77.311,4.13480555]
[1771946529744,13.77690456,77.34,77.3,13.77690456]
[1771946529946,4.18099031,77.337,77.3,13.77690456]
[1771946530649,12.92841536,77.349,77.32,13.77690456]
[1771946531025,17.10940567,77.349,77.32,13.77690456]
[1771946531437,4.18099031,77.349,77.33,13.77690456]
[1771946531640,4.18099031,77.349,77.311,4.13480555]
[1771946531641,12.92841536,77.349,77.32,13.77690456]
[1771946532855,12.9233542,77.38,77.341,4.13480555]
[1771946533055,4.18099031,77.379,77.35,13.77690456]
[1771946533437,4.18099031,77.39,77.37,13.77690456]
[1771946533644,4.18099031,77.389,77.36,13.77690456]
[1771946533961,4.18099031,77.379,77.35,13.77690456]
[1771946534741,4.18099031,77.388,77.36,13.77690456]
[1771946534950,4.18099031,77.388,77.35,26.70501003]
[1771946535257,4.18099031,77.388,77.35,13.77690456]
[1771946536140,4.18099031,77.388,77.351,12.92808108]
[1771946536355,4.18099031,77.388,77.35,13.77690456]
[1771946536556,4.18099031,77.388,77.34,4.13480555]
[1771946536557,51.64571236,77.451,77.38,13.77690456]
[1771946536858,4.18099031,77.417,77.382,12.92290196]
[1771946537042,4.18099031,77.417,77.38,13.77690456]
[1771946537043,4.18099031,77.417,77.38,26.70005065]
[1771946537632,4.18099031,77.409,77.37,13.77690456]
[1771946537829,4.18099031,77.399,77.361,4.13480555]
[1771946538051,4.18099031,77.399,77.36,13.77690456]
[1771946538643,4.18099031,77.409,77.37,13.77690456]
[1771946538832,12.91856138,77.408,77.38,13.77690456]
[1771946539070,12.91856138,77.408,77.371,17.05954479]
[1771946539071,12.91672586,77.419,77.391,4.13480555]
[1771946539256,12.91672586,77.419,77.39,13.77690456]
[1771946539561,4.18099031,77.418,77.38,4.13480555]
[1771946539749,4.18099031,77.418,77.38,17.91171011]
[1771946539941,4.18099031,77.418,77.371,12.92473924]
[1771946540140,4.18099031,77.409,77.38,13.77690456]
[1771946540335,45.20854053,77.419,77.38,13.77690456]
[1771946540543,49.38953084,77.419,77.38,13.77690456]
[1771946540766,4.18099031,77.409,77.367,12.92540747]
[1771946541061,17.09804987,77.417,77.39,13.77690456]
[1771946541241,4.18099031,77.416,77.381,4.13480555]
[1771946541641,0.1,77.42,77.4,13.77690456]
[1771946542182,4.18099031,77.419,77.38,13.77690456]
[1771946542343,4.18099031,77.419,77.37,3.89383402]
[1771946542660,4.18099031,77.409,77.38,0.2]
[1771946543070,3.99482769,77.399,77.37,0.2]
[1771946543441,3.99482769,77.389,77.36,0.2]
[1771946543640,3.99482769,77.379,77.341,12.92975265]
[1771946543849,3.99482769,77.379,77.332,4.21279928]
[1771946543850,13.77690456,77.37,77.33,13.77690456]
[1771946544052,3.99482769,77.369,77.34,13.77690456]
[1771946544446,3.99482769,77.369,77.33,13.77690456]
[1771946544649,3.99482769,77.359,77.33,13.77690456]
[1771946544844,13.77690456,77.37,77.34,13.77690456]
[1771946545057,45.23775671,77.369,77.331,4.21279928]
[1771946545236,49.5872385,77.369,77.331,17.14411624]
[1771946545561,12.92375606,77.377,77.34,13.77690456]
[1771946545740,4.34948179,77.369,77.331,12.93131696]
[1771946546271,45.23309862,77.377,77.34,13.77690456]
[1771946546468,4.34948179,77.376,77.34,13.77690456]
[1771946546638,4.34948179,77.369,77.331,12.93131696]
[1771946547145,4.34948179,77.376,77.341,12.92975265]
[1771946547351,4.34948179,77.376,77.34,13.77690456]
[1771946547551,4.34948179,77.369,77.33,18.09608868]
[1771946548053,4.34948179,77.369,77.33,13.77690456]
[1771946548539,4.34948179,77.369,77.34,13.77690456]
[1771946548962,4.34948179,77.369,77.332,4.31918412]
[1771946549461,4.34948179,77.368,77.333,12.93109022]
[1771946549661,4.34948179,77.359,77.329,12.93175526]
[1771946550057,4.34948179,77.359,77.33,13.77690456]
[1771946550574,4.34948179,77.349,77.31,13.77690456]
[1771946551146,4.34948179,77.339,77.3,13.77690456]
[1771946551444,4.34948179,77.329,77.29,13.77690456]
[1771946551658,4.34948179,77.309,77.272,12.94129827]
[1771946552146,4.34948179,77.299,77.26,13.77690456]
[1771946552345,239.26894021,77.338,77.251,45.30685686]
[1771946552346,4.34948179,77.289,77.251,45.30685686]
[1771946552547,4.34948179,77.289,77.251,12.94481624]
[1771946552747,4.34948179,77.289,77.252,4.31918412]
[1771946552949,3.69383402,77.319,77.251,12.94481624]
[1771946552950,18.12638635,77.3,77.261,4.31918412]
[1771946553140,13.77690456,77.3,77.261,4.31918412]
[1771946553346,4.34948179,77.299,77.261,4.31918412]
[1771946553543,12.93694532,77.298,77.262,12.94297325]
[1771946553768,4.34948179,77.297,77.262,12.94297325]
[1771946554050,3.69383402,77.319,77.251,4.31918412]
[1771946554051,4.34948179,77.299,77.251,4.31918412]
[1771946554253,13.77690456,77.3,77.27,18.09608868]
[1771946554455,18.12638635,77.31,77.27,18.09608868]
[1771946554662,13.77690456,77.33,77.29,13.77690456]
[1771946554971,13.77690456,77.33,77.291,4.31918412]
[1771946555169,4.34948179,77.309,77.27,13.77690456]
[1771946555366,13.77690456,77.31,77.243,3.69383402]
[1771946555367,4.34948179,77.319,77.28,13.77690456]
[1771946555679,4.34948179,77.319,77.271,4.31918412]
[1771946555680,4.34948179,77.307,77.271,17.26055095]
[1771946556054,4.34948179,77.307,77.271,49.61421532]
[1771946556870,4.34948179,77.319,77.28,13.77690456]
[1771946557052,4.34948179,77.315,77.28,18.09608868]
[1771946557251,13.78690961,77.32,77.281,4.31918412]
[1771946557556,12.9326319,77.324,77.291,4.31918412]
[1771946557981,12.9326319,77.324,77.29,13.78690961]
[1771946557982,4.34948179,77.324,77.29,13.78690961]
[1771946558269,45.26115686,77.329,77.279,4.31918412]
[1771946558270,4.34948179,77.319,77.283,12.93932537]
[1771946558459,45.26115686,77.329,77.284,4.31918412]
[1771946558673,4.34948179,77.319,77.284,4.31918412]
[1771946558969,4.34948179,77.309,77.28,13.78690961]
[1771946559156,4.34948179,77.309,77.276,12.94049351]
[1771946559661,4.34948179,77.328,77.29,13.78690961]
[1771946559845,4.34948179,77.328,77.281,4.31918412]
[1771946560048,4.34948179,77.319,77.27,13.78690961]
[1771946560242,4.34948179,77.309,77.27,13.78690961]
[1771946560665,4.34948179,77.319,77.28,13.78690961]
[1771946560964,4.34948179,77.309,77.27,13.78690961]
[1771946561170,4.34948179,77.309,77.27,18.10609373]
[1771946561672,4.34948179,77.319,77.281,4.31918412]
[1771946562372,4.34948179,77.317,77.28,13.78690961]
[1771946563564,4.34948179,77.317,77.276,12.94055274]
[1771946563565,4.34948179,77.33,77.3,13.78690961]
[1771946563760,12.9317591,77.329,77.3,13.78690961]
[1771946564094,4.34948179,77.338,77.301,4.31918412]
[1771946564657,4.34948179,77.336,77.303,4.31918412]
[1771946565677,4.34948179,77.319,77.284,12.93928885]
[1771946565870,4.34948179,77.309,77.28,12.93988614]
[1771946566069,4.34948179,77.309,77.271,12.94146575]
[1771946566272,4.34948179,77.309,77.239,51.78684471]
[1771946566273,4.34948179,77.299,77.262,12.94290214]
[1771946566665,4.34948179,77.289,77.25,13.78690961]
[1771946566862,4.34948179,77.3,77.27,13.78690961]
[1771946567173,4.34948179,77.3,77.26,13.78690961]
[1771946567174,4.34948179,77.299,77.26,13.78690961]
[1771946567378,4.34948179,77.299,77.27,13.78690961]
[1771946567555,13.78690961,77.31,77.27,18.10609373]
[1771946567556,12.93539651,77.308,77.27,18.10609373]
[1771946567751,12.93343162,77.319,77.281,4.31918412]
[1771946568167,4.34948179,77.318,77.281,4.31918412]
[1771946568374,4.34948179,77.318,77.28,13.78690961]
[1771946568777,4.34948179,77.316,77.281,45.28926902]
[1771946568977,4.34948179,77.309,77.276,12.94051947]
[1771946570478,4.34948179,77.309,77.272,12.94125187]
[1771946570665,4.34948179,77.307,77.271,12.94146575]
[1771946571277,4.34948179,77.307,77.28,13.78690961]
[1771946571464,12.93242806,77.325,77.29,13.78690961]
[1771946571662,4.34948179,77.329,77.3,13.78690961]
[1771946571864,4.34948179,77.329,77.272,4.31918412]
[1771946571865,4.34948179,77.319,77.272,4.31918412]
[1771946572066,4.34948179,77.299,77.261,4.31918412]
[1771946572465,4.34948179,77.299,77.27,13.78690961]
[1771946572665,4.34948179,77.289,77.243,4.31918412]
[1771946572863,4.34948179,77.308,77.271,4.31918412]
[1771946574687,12.93543922,77.307,77.272,12.94129827]
[1771946574984,4.34948179,77.306,77.272,12.94129827]
[1771946575379,4.34948179,77.306,77.28,13.78690961]
[1771946576362,4.34948179,77.306,77.272,12.94129827]
[1771946578777,4.14812673,77.304,77.266,12.94230321]
[1771946579125,13.78690961,77.28,77.246,12.94551614]
[1771946579268,4.14812673,77.279,77.246,12.94551614]
[1771946579779,4.14812673,77.259,77.209,3.94257205]
[1771946580084,4.14812673,77.249,77.21,13.78690961]
[1771946580263,4.14812673,77.239,77.202,45.33561306]
[1771946580463,4.14812673,77.239,77.202,12.9530323]
[1771946580886,4.14812673,77.237,77.202,12.9530323]
[1771946581079,4.14812673,77.229,77.2,0.2]
[1771946581389,4.14812673,77.263,77.211,3.94257205]
[1771946581589,4.14812673,77.259,77.221,3.94257205]
[1771946581967,4.14812673,77.249,77.211,3.94257205]
[1771946582287,4.14812673,77.219,77.2,0.2]
[1771946582464,17.93503634,77.23,77.2,0.2]
[1771946582669,4.14812673,77.229,77.2,0.2]
[1771946583093,4.14812673,77.227,77.2,0.2]
[1771946583470,13.78690961,77.21,77.179,3.94257205]
[1771946583788,13.78690961,77.2,77.171,3.94257205]
[1771946583979,4.14812673,77.219,77.181,16.89912871]
[1771946584493,45.32035012,77.228,77.191,3.94257205]
[1771946584694,12.94867146,77.228,77.191,3.94257205]
[1771946584980,4.14812673,77.219,77.181,3.94257205]
[1771946585187,4.14812673,77.219,77.181,16.89912665]
[1771946586471,13.78690961,77.22,77.16,0.2]
[1771946586472,13.78690961,77.19,77.16,0.2]
[1771946586692,13.78690961,77.18,77.16,0.2]
[1771946586993,3.69383402,77.217,77.16,0.2]
[1771946586994,4.14812673,77.187,77.16,0.2]
[1771946587196,4.14812673,77.169,77.131,12.9649451]
[1771946587384,12.95538166,77.188,77.141,3.94257205]
[1771946587385,13.78690961,77.18,77.141,3.94257205]
[1771946587910,13.78690961,77.17,77.131,3.94257205]
[1771946588064,4.14812673,77.179,77.141,3.94257205]
[1771946588594,4.14812673,77.179,77.131,45.37734503]
[1771946588595,4.14812673,77.169,77.131,49.31991708]
[1771946589070,4.14812673,77.179,77.141,3.94257205]
[1771946589276,4.14812673,77.178,77.141,3.94257205]
[1771946589591,13.78690961,77.17,77.141,3.94257205]
[1771946589796,13.78690961,77.17,77.133,45.37616843]
[1771946589971,4.14812673,77.169,77.133,12.96461955]
[1771946590379,4.14812673,77.169,77.134,3.94257205]
[1771946590574,13.78690961,77.18,77.141,3.94257205]
[1771946590980,4.14812673,77.179,77.142,12.96310699]
[1771946591188,4.14812673,77.178,77.142,12.96310699]
[1771946591384,4.14812673,77.178,77.142,45.37087448]
[1771946591707,4.14812673,77.177,77.142,45.37087448]
[1771946592100,4.14812673,77.177,77.142,12.96310699]